Workbook

Sheet Sales Promotion Expenses
B3: Sales Promotion Expenditures by Quarter
B4: For the Year 2009
D7: Q1 | E7: =LEFT(D7,LEN(D7)-1)&FIXED(CHOOSE(VALUE(RIGHT(D7,1)),2,3,4,1),0,TRUE) -> Q2 | F7: =LEFT(E7,LEN(E7)-1)&FIXED(CHOOSE(VALUE(RIGHT(E7,1)),2,3,4,1),0,TRUE) -> Q3 | G7: =LEFT(F7,LEN(F7)-1)&FIXED(CHOOSE(VALUE(RIGHT(F7,1)),2,3,4,1),0,TRUE) -> Q4 | H7: Total
B8: Trade Promotions to Distributors
C9: Promotion | D9: $3,000 | E9: $3,000 | F9: $3,000 | G9: $3,000 | H9: =IF(SUM(D9:G9),SUM(D9:G9),"") -> $12,000
C10: Promotion | D10: 2,000 | E10: 2,000 | F10: 2,000 | G10: 2,000 | H10: =IF(SUM(D10:G10),SUM(D10:G10),"") -> 8,000
C11: Promotion | D11: 2,500 | E11: 2,500 | F11: 2,500 | G11: 2,500 | H11: =IF(SUM(D11:G11),SUM(D11:G11),"") -> 10,000
C12: Promotion | D12: 1,000 | E12: 1,000 | F12: 1,000 | G12: 1,000 | H12: =IF(SUM(D12:G12),SUM(D12:G12),"") -> 4,000
C13: Totals | D13: =IF(SUM(D9:D12),SUM(D9:D12),"") -> $8,500 | E13: =IF(SUM(E9:E12),SUM(E9:E12),"") -> $8,500 | F13: =IF(SUM(F9:F12),SUM(F9:F12),"") -> $8,500 | G13: =IF(SUM(G9:G12),SUM(G9:G12),"") -> $8,500 | H13: =IF(SUM(H9:H12),SUM(H9:H12),"") -> $34,000
B14: Trade Shows
C15: Promotion | D15: $1,000 | E15: $1,000 | F15: $1,000 | G15: $1,000 | H15: =IF(SUM(D15:G15),SUM(D15:G15),"") -> $4,000
C16: Promotion | D16: 2,000 | E16: 2,000 | F16: 2,000 | G16: 2,000 | H16: =IF(SUM(D16:G16),SUM(D16:G16),"") -> 8,000
C17: Promotion | D17: 2,000 | E17: 2,000 | F17: 2,000 | G17: 2,000 | H17: =IF(SUM(D17:G17),SUM(D17:G17),"") -> 8,000
C18: Promotion | D18: 3,000 | E18: 3,000 | F18: 3,000 | G18: 3,000 | H18: =IF(SUM(D18:G18),SUM(D18:G18),"") -> 12,000
C19: Totals | D19: =IF(SUM(D15:D18),SUM(D15:D18),"") -> $8,000 | E19: =IF(SUM(E15:E18),SUM(E15:E18),"") -> $8,000 | F19: =IF(SUM(F15:F18),SUM(F15:F18),"") -> $8,000 | G19: =IF(SUM(G15:G18),SUM(G15:G18),"") -> $8,000 | H19: =IF(SUM(H15:H18),SUM(H15:H18),"") -> $32,000
B20: Sales Force Promotion
C21: Promotion | D21: $100 | E21: $100 | F21: $100 | G21: $100 | H21: =IF(SUM(D21:G21),SUM(D21:G21),"") -> $400
C22: Promotion | D22: 500 | E22: 500 | F22: 500 | G22: 500 | H22: =IF(SUM(D22:G22),SUM(D22:G22),"") -> 2,000
C23: Promotion | D23: 20,000 | E23: 20,000 | F23: 20,000 | G23: 20,000 | H23: =IF(SUM(D23:G23),SUM(D23:G23),"") -> 80,000
C24: Promotion | D24: 100,000 | E24: 100,000 | F24: 100,000 | G24: 100,000 | H24: =IF(SUM(D24:G24),SUM(D24:G24),"") -> 400,000
C25: Totals | D25: =IF(SUM(D21:D24),SUM(D21:D24),"") -> $120,600 | E25: =IF(SUM(E21:E24),SUM(E21:E24),"") -> $120,600 | F25: =IF(SUM(F21:F24),SUM(F21:F24),"") -> $120,600 | G25: =IF(SUM(G21:G24),SUM(G21:G24),"") -> $120,600 | H25: =IF(SUM(H21:H24),SUM(H21:H24),"") -> $482,400
B26: Other Promotions
C27: Promotion | D27: $2,500 | E27: $2,500 | F27: $2,500 | G27: $2,500 | H27: =IF(SUM(D27:G27),SUM(D27:G27),"") -> $10,000
H28: =IF(SUM(D28:G28),SUM(D28:G28),"") -> 
H29: =IF(SUM(D29:G29),SUM(D29:G29),"") -> 
H30: =IF(SUM(D30:G30),SUM(D30:G30),"") -> 
C31: Totals | D31: =IF(SUM(D27:D30),SUM(D27:D30),"") -> $2,500 | E31: =IF(SUM(E27:E30),SUM(E27:E30),"") -> $2,500 | F31: =IF(SUM(F27:F30),SUM(F27:F30),"") -> $2,500 | G31: =IF(SUM(G27:G30),SUM(G27:G30),"") -> $2,500 | H31: =IF(SUM(H27:H30),SUM(H27:H30),"") -> $10,000
B32: Total Promotion Budget | D32: =IF(SUM(D13,D19,D25,D31),SUM(D13,D19,D25,D31),"") -> $139,600 | E32: =IF(SUM(E13,E19,E25,E31),SUM(E13,E19,E25,E31),"") -> $139,600 | F32: =IF(SUM(F13,F19,F25,F31),SUM(F13,F19,F25,F31),"") -> $139,600 | G32: =IF(SUM(G13,G19,G25,G31),SUM(G13,G19,G25,G31),"") -> $139,600 | H32: =IF(SUM(H13,H19,H25,H31),SUM(H13,H19,H25,H31),"") -> $558,400
